fUSD/lending_fUSD_20241107
["ID","MTS","AMOUNT","RATE_DAILY","PERIOD"]
[341534227,1730965845188,-514.20246757,0.00030136,4]
[341534229,1730965845198,-500.0,0.00030136,4]
[341534231,1730965845207,-500.0,0.00030136,4]
[341534233,1730965845216,-1057.08,0.00030136,4]
[341534235,1730965845226,-500.0,0.00030136,4]
[341534237,1730965845236,-1661.94,0.00030136,4]
[341534239,1730965845246,-500.0,0.00030136,4]
[341534241,1730965845256,-3989.72,0.00030136,4]
[341534244,1730965845266,-2298.67,0.00030136,4]
[341534246,1730965845275,-500.0,0.00030136,4]
[341534248,1730965845286,-500.0,0.00030136,4]
[341534250,1730965845296,-885.54,0.00030136,4]
[341534252,1730965845306,-500.0,0.00030136,4]
[341534253,1730965845315,-1226.8,0.00030136,4]
[341534255,1730965845325,-622.84,0.00030136,4]
[341534257,1730965845335,-606.41236881,0.00030136,4]
[341534259,1730965845345,-500.0,0.00030136,4]
[341534261,1730965845355,-1925.96,0.00030136,4]
[341534263,1730965845365,-572.54,0.00030136,4]
[341534266,1730965845376,-846.85,0.00030136,4]
[341534268,1730965845385,-500.0,0.00030136,4]
[341534269,1730965845395,-500.0,0.00030136,4]
[341534271,1730965845406,-500.0,0.00030136,4]
[341534273,1730965845416,-503.83582851,0.00030136,4]
[341534275,1730965845427,-500.0,0.00030136,4]
[341534277,1730965845437,-1078.37,0.00030136,4]
[341534279,1730965845447,-2782.34,0.00030136,4]
[341534281,1730965845457,-500.0,0.00030136,4]
[341534282,1730965845467,-542.47,0.00030136,4]
[341534284,1730965845477,-200.0,0.00030136,4]
[341534286,1730965845487,-500.0,0.00030136,4]
[341534288,1730965845497,-500.0,0.00030136,4]
[341534291,1730965845508,-500.0,0.00030136,4]
[341534293,1730965845518,-500.0,0.00030136,4]
[341534295,1730965845528,-4226.92,0.00030136,4]
[341534297,1730965845537,-500.0,0.00030136,4]
[341534299,1730965845547,-500.0,0.00030136,4]
[341534301,1730965845557,-2868.1,0.00030136,4]
[341534303,1730965845566,-500.0,0.00030136,4]
[341534305,1730965845576,-500.0,0.00030136,4]
[341534307,1730965845587,-994.97,0.00030136,2]
[341534309,1730965845597,-500.0,0.00030136,4]
[341534311,1730965845607,-3380.63,0.00030136,4]
[341534313,1730965845616,-500.0,0.00030136,4]
[341534315,1730965845626,-500.0,0.00030136,4]
[341534317,1730965845636,-531.17,0.00030136,4]
[341534319,1730965845646,-1725.24,0.00030136,4]
[341534321,1730965845656,-166.99448453,0.00030136,4]
[341534323,1730965845667,-500.0,0.00030136,4]
[341534325,1730965845678,-1489.65,0.00030136,4]
[341534327,1730965845687,-593.32,0.00030136,4]
[341534329,1730965845697,-500.0,0.00030136,4]
[341534331,1730965845708,-535.46108489,0.00030136,4]
[341534333,1730965845718,-500.0,0.00030136,4]
[341534335,1730965845728,-500.0,0.00030136,4]
[341534336,1730965845745,-500.0,0.00030136,4]
[341534338,1730965845756,-568.64,0.00030136,4]
[341534340,1730965845766,-2787.43354253,0.00030136,4]
[341534348,1730965845842,-849.95645747,0.00030136,4]
[341534350,1730965845853,-500.0,0.00030136,4]
[341534352,1730965845864,-500.0,0.00030136,4]
[341534354,1730965845875,-1878.69,0.00030136,4]
[341534356,1730965845887,-500.0,0.00030136,4]
[341534358,1730965845897,-670.0,0.00030136,4]
[341534359,1730965845907,-555.5,0.00030136,4]
[341534362,1730965845919,-500.0,0.00030136,4]
[341534364,1730965845929,-500.0,0.00030136,4]
[341534366,1730965845940,-500.0,0.00030136,4]
[341534368,1730965845951,-500.0,0.00030136,4]
[341534371,1730965845961,-500.0,0.00030136,4]
[341534374,1730965845972,-500.0,0.00030136,4]
[341534376,1730965845984,-584.95,0.00030136,4]
[341534379,1730965845995,-572.07,0.00030136,4]
[341534382,1730965846006,-923.3,0.00030136,4]
[341534385,1730965846016,-1723.5,0.00030136,4]
[341534387,1730965846027,-500.0,0.00030136,4]
[341534389,1730965846038,-2008.45,0.00030136,4]
[341534391,1730965846049,-500.0,0.00030136,4]
[341534393,1730965846060,-572.58,0.00030136,4]
[341534395,1730965846071,-500.0,0.00030136,4]
[341534397,1730965846081,-579.96,0.00030136,4]
[341534399,1730965846091,-500.0,0.00030136,4]
[341534401,1730965846101,-500.0,0.00030136,4]
[341534403,1730965846111,-924.34,0.00030136,4]
[341534405,1730965846121,-547.34,0.00030136,4]
[341534407,1730965846131,-500.0,0.00030136,4]
[341534409,1730965846141,-500.0,0.00030136,4]
[341534411,1730965846152,-530.45,0.00030136,4]
[341534413,1730965846163,-616.4,0.00030136,4]
[341534415,1730965846174,-500.0,0.00030136,4]
[341534417,1730965846184,-500.0,0.00030136,4]
[341534419,1730965846195,-552.68,0.00030136,4]
[341534421,1730965846206,-873.97,0.00030136,4]
[341534423,1730965846216,-500.0,0.00030136,4]
[341534425,1730965846227,-1088.11,0.00030136,4]
[341534427,1730965846239,-500.0,0.00030136,4]
[341534429,1730965846249,-500.0,0.00030136,4]
[341534431,1730965846259,-500.0,0.00030136,4]
[341534433,1730965846270,-1043.69,0.00030136,4]
[341534435,1730965846280,-2062.63,0.00030136,4]
[341534437,1730965846291,-922.85,0.00030136,4]
[341534439,1730965846301,-500.0,0.00030136,4]
[341534441,1730965846311,-2492.26,0.00030136,4]
[341534443,1730965846322,-550.28,0.00030136,4]
[341534445,1730965846332,-500.0,0.00030136,4]
[341534447,1730965846342,-500.0,0.00030136,4]
[341534449,1730965846353,-895.69,0.00030136,4]
[341534451,1730965846363,-1824.37,0.00030136,4]
[341534453,1730965846373,-500.0,0.00030136,4]
[341534455,1730965846384,-1077.5,0.00030136,4]
[341534457,1730965846394,-500.0,0.00030136,4]
[341534459,1730965846403,-1028.81,0.00030136,4]
[341534461,1730965846414,-500.0,0.00030136,4]
[341534463,1730965846424,-542.19,0.00030136,4]
[341534465,1730965846434,-500.0,0.00030136,4]
[341534467,1730965846444,-234.67,0.00030137,2]
[341534469,1730965846455,-273.0,0.00030207,2]
[341534471,1730965846465,-11551.0,0.000304,3]
[341534473,1730965846475,-641.14,0.00030408,4]
[341534475,1730965846486,-1028.93,0.00030408,4]
[341534477,1730965846496,-1261.74,0.00030408,4]
[341534479,1730965846506,-2218.54,0.00030408,4]
[341534481,1730965846517,-1876.12,0.00030408,4]
[341534483,1730965846527,-6382.42,0.00030408,4]
[341534485,1730965846537,-1083.82,0.00030408,4]
[341534487,1730965846547,-1098.04,0.00030408,4]
[341534489,1730965846556,-724.3,0.00030408,4]
[341534491,1730965846566,-500.0,0.00030408,4]
[341534493,1730965846576,-2990.93,0.00030408,4]
[341534495,1730965846586,-1537.75,0.00030408,4]
[341534497,1730965846596,-2927.67,0.00030408,4]
[341534499,1730965846606,-624.19,0.00030408,4]
[341534500,1730965846616,-1362.7,0.00030408,4]
[341534501,1730965846626,-650.67,0.00030408,4]
[341534502,1730965846636,-566.96,0.00030408,4]
[341534503,1730965846646,-500.0,0.00030408,4]
[341534504,1730965846656,-500.0,0.00030408,4]
[341534505,1730965846665,-1534.39,0.00030408,4]
[341534506,1730965846675,-503.52964697,0.00030409,4]
[341534507,1730965846685,-506.8419512,0.00030409,4]
[341534508,1730965846695,-504.28698454,0.00030409,4]
[341534509,1730965846705,-500.0,0.00030409,4]
[341534510,1730965846715,-215.34484761,0.00030409,4]
[341534511,1730965846724,-500.0,0.00030409,4]
[341534513,1730965846747,-575.19,0.00030409,4]
[341534515,1730965846772,-542.74,0.00030409,4]
[341534516,1730965846783,-744.6,0.00030409,4]
[341534517,1730965846792,-304.09066292,0.00030409,4]
[341534519,1730965846803,-500.0,0.00030409,4]
[341534521,1730965846812,-500.0,0.00030409,4]
[341534523,1730965846822,-500.0,0.00030409,4]
[341534524,1730965846832,-500.0,0.00030409,4]
[341534525,1730965846842,-726.75,0.00030409,4]
[341534526,1730965846851,-502.97243455,0.00030409,4]
[341534527,1730965846860,-893.24,0.00030409,4]
[341534528,1730965846872,-500.0,0.00030409,4]
[341534529,1730965846881,-1391.7,0.00030409,4]
[341534530,1730965846891,-506.47361847,0.00030409,4]
[341534531,1730965846900,-647.08,0.00030409,4]
[341534532,1730965846910,-513.3,0.00030409,4]
[341534533,1730965846919,-486.14410437,0.00030409,4]
[341534534,1730965846928,-500.0,0.00030409,4]
[341534535,1730965846937,-501.78,0.00030409,4]
[341534536,1730965846947,-718.45,0.00030409,4]
[341534537,1730965846957,-500.0,0.00030409,4]
[341534538,1730965846966,-500.0,0.00030409,4]
[341534539,1730965846975,-833.45,0.00030409,4]
[341534540,1730965846985,-500.0,0.00030409,4]
[341534541,1730965846995,-500.0,0.00030409,4]
[341534542,1730965847004,-552.82401892,0.00030409,4]
[341534543,1730965847014,-500.0,0.00030409,4]
[341534544,1730965847023,-500.0,0.00030409,4]
[341534545,1730965847033,-500.0,0.00030409,4]
[341534546,1730965847042,-782.91,0.00030409,4]
[341534547,1730965847052,-500.0,0.00030409,4]
[341534548,1730965847062,-500.0,0.00030409,4]
[341534549,1730965847071,-500.0,0.00030409,4]
[341534550,1730965847081,-500.0,0.00030409,4]
[341534551,1730965847090,-500.0,0.00030409,4]
[341534552,1730965847100,-786.71,0.00030409,4]
[341534553,1730965847109,-427.56731664,0.00030409,4]
[341534554,1730965847118,-500.0,0.00030409,4]
[341534555,1730965847128,-745.77,0.00030409,4]
[341534556,1730965847137,-500.0,0.00030409,4]
[341534557,1730965847146,-1278.03,0.00030409,4]
[341534558,1730965847155,-500.0,0.00030409,4]
[341534559,1730965847165,-612.76,0.00030409,4]
[341534560,1730965847174,-500.0,0.00030409,4]
[341534561,1730965847185,-500.0,0.00030409,4]
[341534562,1730965847195,-500.0,0.00030409,4]
[341534563,1730965847204,-1252.76,0.00030409,4]
[341534564,1730965847213,-489.19,0.00030409,4]
[341534565,1730965847222,-500.0,0.00030409,4]
[341534566,1730965847232,-500.0,0.00030409,4]
[341534567,1730965847241,-824.21,0.00030409,4]
[341534568,1730965847250,-535.22010009,0.00030409,4]
[341534569,1730965847259,-500.0,0.00030409,4]
[341534570,1730965847268,-500.0,0.00030409,4]
[341534571,1730965847278,-500.0,0.00030409,4]
[341534572,1730965847287,-500.0,0.00030409,4]
[341534573,1730965847297,-371.36168163,0.00030409,4]
[341534574,1730965847306,-1063.49,0.00030409,4]
[341534575,1730965847316,-500.0,0.00030409,4]
[341534576,1730965847326,-765.59,0.00030409,4]
[341534577,1730965847335,-500.0,0.00030409,4]
[341534578,1730965847345,-803.71,0.00030409,4]
[341534579,1730965847355,-500.0,0.00030409,4]
[341534580,1730965847365,-573.42,0.00030409,4]
[341534581,1730965847374,-500.0,0.00030409,4]
[341534582,1730965847384,-603.39,0.00030409,4]
[341534583,1730965847393,-813.76,0.00030409,4]
[341534584,1730965847402,-500.0,0.00030409,4]
[341534585,1730965847412,-1211.78,0.00030409,4]
[341534586,1730965847421,-500.0,0.00030409,4]
[341534587,1730965847430,-500.0,0.00030409,4]
[341534588,1730965847440,-533.12,0.00030409,4]
[341534589,1730965847449,-500.0,0.00030409,4]
[341534590,1730965847458,-620.56,0.00030409,4]
[341534591,1730965847468,-500.0,0.00030409,4]
[341534592,1730965847477,-2058.22,0.00030409,4]
[341534593,1730965847487,-500.0,0.00030409,4]
[341534594,1730965847496,-500.0,0.00030409,4]
[341534595,1730965847507,-599.46,0.00030409,4]
[341534596,1730965847516,-603.23,0.00030409,4]
[341534597,1730965847526,-1547.91,0.00030409,4]
[341534598,1730965847535,-500.0,0.00030409,4]
[341534599,1730965847544,-666.21,0.00030409,4]
[341534600,1730965847554,-664.9,0.00030409,4]
[341534601,1730965847563,-500.0,0.00030409,4]
[341534602,1730965847572,-500.0,0.00030409,4]
[341534603,1730965847582,-500.0,0.00030409,4]
[341534604,1730965847591,-830.21,0.00030409,4]
[341534605,1730965847601,-500.0,0.00030409,4]
[341534606,1730965847610,-603.7,0.00030409,4]
[341534607,1730965847619,-845.5,0.00030409,4]
[341534608,1730965847629,-2346.99,0.00030409,4]
[341534609,1730965847639,-907.1,0.00030409,4]
[341534610,1730965847648,-500.0,0.00030409,4]
[341534611,1730965847658,-853.18,0.00030409,4]
[341534612,1730965847667,-500.0,0.00030409,4]
[341534613,1730965847677,-1468.17,0.00030409,4]
[341534614,1730965847686,-733.38,0.00030409,4]
[341534615,1730965847695,-500.0,0.00030409,4]
[341534616,1730965847705,-521.37,0.00030409,4]
[341534617,1730965847714,-500.0,0.00030409,4]
[341534618,1730965847724,-490.12576546,0.00030409,4]
[341534619,1730965847734,-694.46,0.00030409,4]
[341534620,1730965847744,-500.0,0.00030409,4]
[341534621,1730965847757,-500.0,0.00030409,4]
[341534622,1730965847766,-500.0,0.00030409,4]
[341534623,1730965847776,-500.0,0.00030409,4]
[341534624,1730965847785,-645.55,0.00030409,4]
[341534625,1730965847798,-1046.94,0.00030409,4]
[341534626,1730965847807,-500.0,0.00030409,4]
[341534627,1730965847817,-500.0,0.00030409,4]
[341534628,1730965847829,-1851.08,0.00030409,4]
[341534629,1730965847839,-500.0,0.00030409,4]
[341534630,1730965847848,-1072.74,0.00030409,4]
[341534631,1730965847858,-500.0,0.00030409,4]
[341534632,1730965848102,-1638.1,0.00030409,4]
[341534633,1730965848113,-500.0,0.00030409,4]
[341534634,1730965848123,-455.95398677,0.00030409,4]
[341534635,1730965848134,-1026.18,0.00030409,4]
[341534636,1730965848144,-500.0,0.00030409,4]
[341534637,1730965848154,-500.0,0.00030409,4]
[341534638,1730965848164,-500.0,0.00030409,4]
[341534639,1730965848174,-2542.36,0.00030409,4]
[341534640,1730965848183,-500.0,0.00030409,4]
[341534641,1730965848193,-500.0,0.00030409,4]
[341534642,1730965848202,-2192.54,0.00030409,4]
[341534643,1730965848212,-1969.7,0.00030409,4]
[341534644,1730965848221,-500.0,0.00030409,4]
[341534645,1730965848232,-500.0,0.00030409,4]
[341534646,1730965848242,-777.53,0.00030409,4]
[341534647,1730965848252,-500.0,0.00030409,4]
[341534648,1730965848262,-3318.18,0.00030409,4]
[341534649,1730965848274,-2175.73,0.00030409,4]
[341534650,1730965848283,-2743.46,0.00030409,4]
[341534651,1730965848293,-500.0,0.00030409,4]
[341534652,1730965848303,-500.0,0.00030409,4]
[341534653,1730965848312,-500.0,0.00030409,4]
[341534654,1730965848322,-1914.01,0.00030409,4]
[341534655,1730965848332,-910.16,0.00030409,4]
[341534656,1730965848342,-500.0,0.00030409,4]
[341534657,1730965848353,-1589.47,0.00030409,4]
[341534658,1730965848363,-579.85568021,0.00030409,4]
[341534659,1730965848373,-1447.85,0.00030409,4]
[341534660,1730965848383,-566.97932605,0.00030409,4]
[341534661,1730965848393,-500.0,0.00030409,4]
[341534662,1730965848402,-500.0,0.00030409,4]
[341534663,1730965848412,-889.83,0.00030409,4]
[341534664,1730965848423,-500.0,0.00030409,4]
[341534665,1730965848433,-902.07,0.00030409,4]
[341534666,1730965848443,-1886.32,0.00030409,4]
[341534667,1730965848453,-1232.36,0.00030409,4]
[341534668,1730965848463,-500.0,0.0003041,4]
[341534669,1730965848473,-734.45,0.0003041,4]
[341534670,1730965848483,-500.0,0.0003041,4]
[341534671,1730965848493,-500.0,0.0003041,4]
[341534672,1730965848503,-500.0,0.0003041,4]
[341534673,1730965848512,-500.0,0.0003041,4]
[341534674,1730965848522,-500.0,0.0003041,4]
[341534675,1730965848532,-500.0,0.0003041,4]
[341534676,1730965848542,-500.0,0.0003041,4]
[341534677,1730965848552,-500.0,0.0003041,4]
[341534678,1730965848562,-361.40735469,0.0003041,4]
[341534679,1730965848572,-509.03693406,0.0003041,4]
[341534680,1730965848582,-500.0,0.0003041,4]
[341534681,1730965848591,-500.0,0.0003041,4]
[341534682,1730965848601,-183.26155052,0.0003041,4]
[341534683,1730965848611,-500.0,0.0003041,4]
[341534684,1730965848620,-500.0,0.0003041,4]
[341534685,1730965848630,-599.71,0.0003041,4]
[341534686,1730965848640,-500.0,0.0003041,4]
[341534687,1730965848650,-500.0,0.0003041,4]
[341534688,1730965848660,-500.0,0.0003041,4]
[341534689,1730965848670,-500.0,0.0003041,4]
[341534690,1730965848681,-589.68043098,0.0003041,4]
[341534691,1730965848691,-500.0,0.0003041,4]
[341534692,1730965848701,-500.0,0.0003041,4]
[341534693,1730965848711,-500.0,0.0003041,4]
[341534694,1730965848721,-500.0,0.0003041,4]
[341534695,1730965848731,-1004.03,0.0003041,4]
[341534696,1730965848741,-500.0,0.0003041,4]
[341534697,1730965848755,-500.0,0.0003041,4]
[341534698,1730965848765,-1021.8,0.0003041,4]
[341534699,1730965848774,-500.0,0.0003041,4]
[341534700,1730965848784,-401.13198115,0.0003041,4]
[341534701,1730965848794,-500.0,0.0003041,4]
[341534702,1730965848804,-923.43,0.0003041,4]
[341534703,1730965848813,-500.0,0.0003041,4]
[341534704,1730965848825,-500.0,0.0003041,4]
[341534705,1730965848836,-500.0,0.0003041,4]
[341534706,1730965848846,-667.29,0.0003041,4]
[341534707,1730965848856,-500.0,0.0003041,4]
[341534708,1730965848867,-616.82875355,0.0003041,4]
[341534709,1730965848876,-500.0,0.0003041,4]
[341534710,1730965848886,-500.0,0.0003041,4]
[341534711,1730965848896,-547.6,0.0003041,4]
[341534712,1730965848906,-584.43,0.0003041,4]
[341534713,1730965848916,-500.0,0.0003041,4]
[341534714,1730965848926,-500.0,0.0003041,4]
[341534715,1730965848935,-762.73,0.0003041,4]
[341534716,1730965848945,-500.0,0.0003041,4]
[341534717,1730965848955,-832.22,0.0003041,4]
[341534718,1730965848965,-500.0,0.0003041,4]
[341534719,1730965848975,-505.58,0.0003041,4]
[341534720,1730965848984,-500.0,0.0003041,4]
[341534721,1730965848994,-600.96,0.0003041,4]
[341534722,1730965849003,-580.83,0.0003041,4]
[341534723,1730965849013,-708.48,0.0003041,4]
[341534724,1730965849024,-1064.93,0.0003041,4]
[341534725,1730965849034,-500.0,0.0003041,4]
[341534726,1730965849044,-500.0,0.0003041,4]
[341534727,1730965849054,-500.0,0.0003041,4]
[341534728,1730965849064,-500.0,0.0003041,4]
[341534729,1730965849073,-500.0,0.0003041,4]
[341534730,1730965849084,-500.0,0.0003041,4]
[341534731,1730965849094,-1651.92,0.0003041,4]
[341534732,1730965849104,-500.0,0.0003041,4]
[341534733,1730965849114,-500.0,0.0003041,4]
[341534734,1730965849124,-693.94,0.0003041,4]
[341534735,1730965849133,-500.0,0.0003041,4]
[341534736,1730965849143,-500.0,0.0003041,4]
[341534737,1730965849152,-500.0,0.0003041,4]
[341534738,1730965849162,-643.94,0.0003041,4]
[341534739,1730965849172,-500.0,0.0003041,4]
[341534740,1730965849182,-500.0,0.0003041,4]
[341534741,1730965849191,-500.0,0.0003041,4]
[341534742,1730965849201,-500.0,0.0003041,4]
[341534743,1730965849211,-504.46,0.0003041,4]
[341534744,1730965849221,-500.0,0.0003041,4]
[341534745,1730965849231,-500.0,0.0003041,4]
[341534746,1730965849243,-500.0,0.0003041,4]
[341534747,1730965849252,-500.0,0.0003041,4]
[341534748,1730965849262,-500.0,0.0003041,4]
[341534749,1730965849273,-500.0,0.0003041,4]
[341534750,1730965849282,-500.0,0.0003041,4]
[341534751,1730965849292,-1567.04,0.0003041,4]
[341534752,1730965849302,-500.0,0.0003041,4]
[341534753,1730965849311,-2580.92,0.0003041,4]
[341534754,1730965849321,-1079.2,0.0003041,4]
[341534755,1730965849331,-932.4,0.0003041,4]
[341534756,1730965849340,-500.0,0.0003041,4]
[341534757,1730965849352,-500.0,0.0003041,4]
[341534758,1730965849363,-500.0,0.0003041,4]
[341534759,1730965849373,-663.48,0.0003041,4]
[341534760,1730965849383,-500.0,0.0003041,4]
[341534761,1730965849393,-640.61,0.0003041,4]
[341534762,1730965849403,-500.0,0.0003041,4]
[341534763,1730965849413,-500.0,0.0003041,4]
[341534764,1730965849423,-547.45,0.0003041,4]
[341534765,1730965849433,-167.55913903,0.0003041,4]
[341534766,1730965849443,-500.0,0.0003041,4]
[341534767,1730965849453,-839.27,0.0003041,4]
[341534768,1730965849463,-500.0,0.0003041,4]
[341534769,1730965849473,-1000.0,0.0003041,30]
[341534770,1730965849485,-500.0,0.0003041,4]
[341534771,1730965849496,-1103.13,0.0003041,4]
[341534772,1730965849506,-913.95,0.0003041,4]
[341534773,1730965849515,-738.12,0.0003041,4]
[341534774,1730965849525,-500.0,0.0003041,4]
[341534775,1730965849535,-2058.57,0.0003041,4]
[341534776,1730965849544,-502.01,0.0003041,4]
[341534777,1730965849554,-500.0,0.0003041,4]
[341534778,1730965849563,-500.0,0.0003041,4]
[341534779,1730965849573,-500.0,0.0003041,4]
[341534780,1730965849583,-500.0,0.0003041,4]
[341534781,1730965849592,-500.0,0.0003041,4]
[341534782,1730965849602,-500.0,0.0003041,4]
[341534783,1730965849611,-171.482631,0.0003041,4]
[341534784,1730965849621,-1369.51,0.0003041,4]
[341534785,1730965849631,-500.0,0.0003041,4]
[341534786,1730965849640,-506.73,0.0003041,4]
[341534787,1730965849650,-500.0,0.0003041,4]
[341534788,1730965849660,-1619.98,0.0003041,4]
[341534789,1730965849670,-500.0,0.0003041,4]
[341534790,1730965849679,-500.0,0.0003041,4]
[341534791,1730965849690,-729.75,0.0003041,4]
[341534792,1730965849699,-1663.96,0.0003041,4]
[341534793,1730965849709,-809.98,0.0003041,4]
[341534794,1730965849719,-654.86,0.0003041,4]
[341534795,1730965849729,-500.0,0.0003041,4]
[341534796,1730965849740,-1588.34,0.0003041,4]
[341534797,1730965849753,-1214.24,0.0003041,4]
[341534798,1730965849763,-500.0,0.0003041,4]
[341534799,1730965849774,-163.25216613,0.0003041,4]
[341534800,1730965849783,-500.0,0.0003041,4]
[341534801,1730965849793,-500.0,0.0003041,4]
[341534802,1730965849803,-500.0,0.0003041,4]
[341534803,1730965849813,-661.77,0.0003041,4]
[341534804,1730965849822,-500.0,0.0003041,4]
[341534805,1730965849834,-500.0,0.0003041,4]
[341534806,1730965849844,-746.0,0.0003041,4]
[341534807,1730965849854,-500.0,0.0003041,4]
[341534808,1730965849864,-1284.69,0.0003041,4]
[341534809,1730965849874,-846.81,0.0003041,4]
[341534810,1730965849885,-500.0,0.0003041,4]
[341534811,1730965849895,-856.78,0.0003041,4]
[341534812,1730965849905,-500.0,0.0003041,4]
[341534813,1730965849915,-1372.36,0.0003041,4]
[341534814,1730965849924,-500.0,0.0003041,4]
[341534815,1730965849934,-1338.69,0.0003041,4]
[341534816,1730965849945,-1000.0,0.0003041,10]
[341534817,1730965849954,-430.67355509,0.0003041,4]
[341534818,1730965849964,-500.0,0.0003041,4]
[341534819,1730965849973,-500.0,0.0003041,4]
[341534820,1730965849983,-842.29,0.0003041,4]
[341534821,1730965849994,-500.0,0.0003041,4]
[341534822,1730965850003,-500.0,0.0003041,4]
[341534823,1730965850014,-715.53,0.0003041,4]
[341534824,1730965850023,-1946.9,0.0003041,4]
[341534825,1730965850033,-535.52,0.0003041,4]
[341534826,1730965850043,-2228.73,0.0003041,4]
[341534827,1730965850052,-500.0,0.0003041,4]
[341534828,1730965850062,-500.0,0.0003041,4]
[341534829,1730965850071,-500.0,0.0003041,4]
[341534830,1730965850081,-500.0,0.0003041,4]
[341534831,1730965850090,-500.0,0.0003041,4]
[341534832,1730965850099,-1203.55,0.0003041,4]
[341534833,1730965850109,-909.87,0.0003041,4]
[341534834,1730965850119,-1370.78,0.0003041,4]
[341534835,1730965850128,-500.0,0.0003041,4]
[341534836,1730965850138,-500.0,0.0003041,4]
[341534837,1730965850147,-1602.06,0.0003041,4]
[341534838,1730965850157,-500.0,0.0003041,4]
[341534839,1730965850166,-1386.39,0.0003041,4]
[341534840,1730965850175,-638.84,0.0003041,4]
[341534841,1730965850185,-603.9,0.0003041,4]
[341534842,1730965850195,-598.77,0.0003041,4]
[341534843,1730965850204,-690.32,0.0003041,4]
[341534844,1730965850214,-854.34,0.0003041,4]
[341534845,1730965850223,-500.0,0.0003041,4]
[341534846,1730965850234,-879.57,0.0003041,4]
[341534847,1730965850244,-509.52,0.0003041,4]
[341534848,1730965850253,-852.46,0.0003041,4]
[341534849,1730965850263,-500.0,0.0003041,4]
[341534850,1730965850272,-500.0,0.0003041,4]
[341534851,1730965850282,-660.96,0.0003041,4]
[341534852,1730965850291,-1560.17,0.0003041,4]
[341534853,1730965850300,-500.0,0.0003041,4]
[341534854,1730965850310,-500.0,0.0003041,4]
[341534855,1730965850319,-1222.5,0.0003041,4]
[341534856,1730965850329,-1631.12,0.0003041,4]
[341534857,1730965850338,-500.0,0.0003041,4]
[341534858,1730965850348,-625.89,0.0003041,4]
[341534859,1730965850357,-500.0,0.0003041,4]
[341534860,1730965850367,-500.0,0.0003041,4]
[341534861,1730965850376,-634.34,0.0003041,4]
[341534862,1730965850386,-529.36,0.0003041,4]
[341534863,1730965850397,-778.49,0.0003041,4]
[341534864,1730965850406,-500.0,0.0003041,4]
[341534865,1730965850417,-500.0,0.0003041,4]
[341534866,1730965850427,-500.0,0.0003041,4]
[341534867,1730965850437,-511.2,0.0003041,4]
[341534868,1730965850447,-500.0,0.0003041,4]
[341534869,1730965850457,-151.0,0.0003041,7]
[341534870,1730965850466,-500.0,0.0003041,4]
[341534871,1730965850476,-500.0,0.0003041,4]
[341534872,1730965850488,-500.0,0.0003041,4]